[Event "Early-Titled-Tuesday-Blitz-March-05-2024"]
[Site "Chess.com"]
[Date "2024.03.05"]
[Round "4"]
[White "CarlosjPineror"]
[Black "Manukyan_Artak"]
[Result "1-0"]
[WhiteElo "2718"]
[BlackElo "2528"]
[TimeControl "180+1"]
[EndTime "8:42:47 PST"]
[Termination "CarlosjPineror won by resignation"]

1. e4 {[%clk 0:03:00.9]} 1... c6 {[%clk 0:02:58.3]} 2. d3 {[%clk 0:02:57.8]}
2... d5 {[%clk 0:02:59.2]} 3. Nd2 {[%clk 0:02:57.8]} 3... Nf6 {[%clk 0:02:58.7]}
4. Ngf3 {[%clk 0:02:57.9]} 4... Qc7 {[%clk 0:02:58.5]} 5. g3 {[%clk 0:02:57.6]}
5... Bg4 {[%clk 0:02:58.3]} 6. Bg2 {[%clk 0:02:57.4]} 6... dxe4 {[%clk
0:02:57.5]} 7. dxe4 {[%clk 0:02:57]} 7... e5 {[%clk 0:02:57.5]} 8. O-O {[%clk
0:02:55.9]} 8... Nbd7 {[%clk 0:02:57.6]} 9. h3 {[%clk 0:02:55.5]} 9... Bh5
{[%clk 0:02:52]} 10. g4 {[%clk 0:02:55.4]} 10... Bg6 {[%clk 0:02:49.8]} 11. Nh4
{[%clk 0:02:55.2]} 11... O-O-O {[%clk 0:02:49.4]} 12. Qe2 {[%clk 0:02:53.8]}
12... Nc5 {[%clk 0:02:49]} 13. c3 {[%clk 0:02:42]} 13... Ne6 {[%clk 0:02:48.4]}
14. Nc4 {[%clk 0:02:38.8]} 14... b5 {[%clk 0:02:42.2]} 15. Ne3 {[%clk
0:02:29.7]} 15... Nf4 {[%clk 0:02:40.8]} 16. Qf3 {[%clk 0:02:30.2]} 16... h5
{[%clk 0:02:33]} 17. Nxg6 {[%clk 0:02:29.1]} 17... fxg6 {[%clk 0:02:32.6]} 18.
g5 {[%clk 0:02:29]} 18... Nd7 {[%clk 0:02:27.2]} 19. Nc2 {[%clk 0:02:19.1]}
19... Nc5 {[%clk 0:02:21.3]} 20. Bxf4 {[%clk 0:02:10.5]} 20... exf4 {[%clk
0:02:20.3]} 21. Rad1 {[%clk 0:02:07.7]} 21... Be7 {[%clk 0:02:18.6]} 22. h4
{[%clk 0:02:07.5]} 22... Kb7 {[%clk 0:02:16.7]} 23. e5 {[%clk 0:01:56.3]} 23...
Ne6 {[%clk 0:02:11.1]} 24. Nd4 {[%clk 0:01:54.4]} 24... Nxd4 {[%clk 0:02:09.1]}
25. cxd4 {[%clk 0:01:55.3]} 25... Rhf8 {[%clk 0:01:55.3]} 26. Rc1 {[%clk
0:01:43.9]} 26... Rd5 {[%clk 0:01:45]} 27. Rxc6 {[%clk 0:01:35.9]} 27... Qxc6
{[%clk 0:01:42.4]} 28. Qxd5 {[%clk 0:01:36.4]} 28... Qxd5 {[%clk 0:01:42.6]} 29.
Bxd5+ {[%clk 0:01:37.2]} 29... Kb8 {[%clk 0:01:38.4]} 30. Be4 {[%clk 0:01:33.3]}
30... f3 {[%clk 0:01:34.4]} 31. d5 {[%clk 0:01:24.6]} 31... Rf4 {[%clk
0:01:31.4]} 32. Bxg6 {[%clk 0:00:27.4]} 32... Rg4+ {[%clk 0:01:28.2]} 33. Kh2
{[%clk 0:00:26]} 33... Rxh4+ {[%clk 0:01:27.6]} 34. Kg3 {[%clk 0:00:20.8]} 34...
Rg4+ {[%clk 0:01:27.8]} 35. Kxf3 {[%clk 0:00:20.6]} 35... Rxg5 {[%clk
0:01:28.7]} 36. d6 {[%clk 0:00:12.6]} 36... Bxd6 {[%clk 0:01:26]} 37. exd6
{[%clk 0:00:12.7]} 37... Rxg6 {[%clk 0:01:26.4]} 38. Rd1 {[%clk 0:00:12.3]}
38... Kc8 {[%clk 0:01:26.7]} 39. Ke4 {[%clk 0:00:12.3]} 39... Kd7 {[%clk
0:01:26.5]} 40. Rd5 {[%clk 0:00:08.5]} 40... Rh6 {[%clk 0:01:12.2]} 41. Rxb5
{[%clk 0:00:07.1]} 41... h4 {[%clk 0:01:12.3]} 42. Rg5 {[%clk 0:00:04.7]} 42...
h3 {[%clk 0:01:11.7]} 43. Rxg7+ {[%clk 0:00:04.7]} 43... Kxd6 {[%clk 0:01:12.2]}
44. Rg1 {[%clk 0:00:05.6]} 44... Kc5 {[%clk 0:01:07.9]} 45. Rh1 {[%clk
0:00:05.1]} 45... Rb6 {[%clk 0:01:06]} 46. b3 {[%clk 0:00:04.7]} 46... Ra6
{[%clk 0:01:05.6]} 47. Rxh3 {[%clk 0:00:05.1]} 47... Rxa2 {[%clk 0:01:05.4]} 48.
f4 {[%clk 0:00:05.9]} 48... Kd6 {[%clk 0:01:03.3]} 49. Kf5 {[%clk 0:00:05.6]}
49... a5 {[%clk 0:01:00.5]} 50. Rh7 {[%clk 0:00:04.2]} 50... a4 {[%clk
0:01:00.4]} 51. bxa4 {[%clk 0:00:03.6]} 51... Rxa4 {[%clk 0:01:01.3]} 52. Rb7
{[%clk 0:00:03.2]} 52... Ra1 {[%clk 0:00:57.3]} 53. Kf6 {[%clk 0:00:03.3]} 53...
Rf1 {[%clk 0:00:56.4]} 54. f5 {[%clk 0:00:03.7]} 54... Kc6 {[%clk 0:00:56.8]}
55. Re7 {[%clk 0:00:04.2]} 55... Kd6 {[%clk 0:00:57.3]} 56. Re6+ {[%clk
0:00:05.1]} 56... Kd7 {[%clk 0:00:57.7]} 57. Re2 {[%clk 0:00:05.8]} 57... Kd8
{[%clk 0:00:57.7]} 58. Kg6 {[%clk 0:00:05.8]} 58... Rg1+ {[%clk 0:00:56.7]} 59.
Kf7 {[%clk 0:00:06]} 59... Rf1 {[%clk 0:00:56.1]} 60. f6 {[%clk 0:00:06.4]}
60... Kd7 {[%clk 0:00:57]} 61. Kg7 {[%clk 0:00:06.5]} 61... Rg1+ {[%clk
0:00:56.3]} 62. Kf7 {[%clk 0:00:06.8]} 62... Rf1 {[%clk 0:00:54]} 63. Rd2+
{[%clk 0:00:07.3]} 63... Kc6 {[%clk 0:00:52.4]} 64. Ke7 {[%clk 0:00:07.4]} 64...
Re1+ {[%clk 0:00:52.6]} 65. Kf8 {[%clk 0:00:03]} 65... Rf1 {[%clk 0:00:52.8]}
66. f7 {[%clk 0:00:03.3]} 66... Kc7 {[%clk 0:00:50.8]} 67. Rg2 {[%clk
0:00:03.7]} 67... Kd7 {[%clk 0:00:47.5]} 68. Kg8 {[%clk 0:00:03.9]} 68... Ke7
{[%clk 0:00:47.2]} 69. Re2+ {[%clk 0:00:03.5]} 1-0

[Event "Early-Titled-Tuesday-Blitz-March-05-2024"]
[Site "Chess.com"]
[Date "2024.03.05"]
[Round "4"]
[White "GreenPeach24"]
[Black "FoxOnTheRun97"]
[Result "0-1"]
[WhiteElo "2466"]
[BlackElo "2639"]
[TimeControl "180+1"]
[EndTime "8:42:47 PST"]
[Termination "FoxOnTheRun97 won by checkmate"]

1. d4 {[%clk 0:03:00.9]} 1... Nf6 {[%clk 0:02:59.7]} 2. Nf3 {[%clk 0:03:00.2]}
2... d5 {[%clk 0:02:59.1]} 3. Bf4 {[%clk 0:02:59.9]} 3... c5 {[%clk 0:02:58.5]}
4. e3 {[%clk 0:02:59.8]} 4... Nc6 {[%clk 0:02:58]} 5. Nbd2 {[%clk 0:02:59.9]}
5... Qb6 {[%clk 0:02:56.6]} 6. dxc5 {[%clk 0:02:59.8]} 6... Qxb2 {[%clk
0:02:56.1]} 7. Rb1 {[%clk 0:02:59.9]} 7... Qc3 {[%clk 0:02:56]} 8. Bb5 {[%clk
0:02:59.3]} 8... g6 {[%clk 0:02:49.5]} 9. O-O {[%clk 0:02:47.1]} 9... Bd7 {[%clk
0:02:48.8]} 10. Nb3 {[%clk 0:02:28.1]} 10... Bg7 {[%clk 0:02:41.3]} 11. Bxc6
{[%clk 0:02:20.5]} 11... Bxc6 {[%clk 0:02:34.4]} 12. Be5 {[%clk 0:02:20.2]}
12... Qc4 {[%clk 0:02:30.4]} 13. Nfd4 {[%clk 0:02:18.6]} 13... O-O {[%clk
0:02:17.7]} 14. Qd3 {[%clk 0:02:17.8]} 14... Nd7 {[%clk 0:02:08.7]} 15. Bxg7
{[%clk 0:02:14.8]} 15... Kxg7 {[%clk 0:02:05.9]} 16. Qxc4 {[%clk 0:02:13.5]}
16... dxc4 {[%clk 0:02:06.2]} 17. Na5 {[%clk 0:02:13.1]} 17... Nxc5 {[%clk
0:02:05.5]} 18. Ndxc6 {[%clk 0:02:01.9]} 18... bxc6 {[%clk 0:02:04.5]} 19. Nxc6
{[%clk 0:02:00.9]} 19... e6 {[%clk 0:01:58.4]} 20. Rfd1 {[%clk 0:01:59.5]} 20...
Rac8 {[%clk 0:01:49.6]} 21. Ne5 {[%clk 0:01:50.4]} 21... Rc7 {[%clk 0:01:37.6]}
22. f3 {[%clk 0:01:46.1]} 22... Na4 {[%clk 0:01:29.3]} 23. Rd4 {[%clk
0:01:42.6]} 23... Nb6 {[%clk 0:01:27.4]} 24. e4 {[%clk 0:01:34]} 24... Rc5
{[%clk 0:01:21.8]} 25. f4 {[%clk 0:01:31.2]} 25... Ra5 {[%clk 0:01:14.6]} 26. c3
{[%clk 0:01:20.3]} 26... Rxa2 {[%clk 0:01:12]} 27. Nxc4 {[%clk 0:01:19.7]} 27...
Nxc4 {[%clk 0:00:56.2]} 28. Rxc4 {[%clk 0:01:20.6]} 28... Rd8 {[%clk 0:00:56.1]}
29. Rd4 {[%clk 0:01:20.5]} 29... Rxd4 {[%clk 0:00:55.3]} 30. cxd4 {[%clk
0:01:21.4]} 30... Ra4 {[%clk 0:00:54.4]} 31. Kf2 {[%clk 0:01:08]} 31... Rxd4
{[%clk 0:00:54]} 32. Ke3 {[%clk 0:01:08.3]} 32... Ra4 {[%clk 0:00:53.5]} 33. e5
{[%clk 0:01:07.5]} 33... Ra3+ {[%clk 0:00:49.8]} 34. Kf2 {[%clk 0:01:06.4]}
34... g5 {[%clk 0:00:47.8]} 35. g3 {[%clk 0:01:03.3]} 35... Kg6 {[%clk
0:00:47.4]} 36. Rb7 {[%clk 0:01:02.6]} 36... h6 {[%clk 0:00:46.9]} 37. Kg2
{[%clk 0:00:54.7]} 37... g4 {[%clk 0:00:45.3]} 38. Kf2 {[%clk 0:00:53.8]} 38...
Ra2+ {[%clk 0:00:45.2]} 39. Kg1 {[%clk 0:00:52.7]} 39... a5 {[%clk 0:00:45]} 40.
Ra7 {[%clk 0:00:47.2]} 40... a4 {[%clk 0:00:42.9]} 41. Rb7 {[%clk 0:00:39.4]}
41... h5 {[%clk 0:00:38.9]} 42. Ra7 {[%clk 0:00:38.4]} 42... Kf5 {[%clk
0:00:38.2]} 43. Rxf7+ {[%clk 0:00:37.7]} 43... Ke4 {[%clk 0:00:38.8]} 44. Kf1
{[%clk 0:00:36.7]} 44... Rxh2 {[%clk 0:00:36.5]} 45. Ra7 {[%clk 0:00:36.4]}
45... Ra2 {[%clk 0:00:35.6]} 46. Ke1 {[%clk 0:00:33.3]} 46... Kf3 {[%clk
0:00:33.4]} 47. f5 {[%clk 0:00:32.9]} 47... exf5 {[%clk 0:00:33.5]} 48. Kd1
{[%clk 0:00:30.1]} 48... Re2 {[%clk 0:00:31.9]} 49. Rxa4 {[%clk 0:00:26.8]}
49... Rxe5 {[%clk 0:00:31.9]} 50. Ra3+ {[%clk 0:00:27]} 50... Re3 {[%clk
0:00:31.5]} 51. Ra5 {[%clk 0:00:27.2]} 51... Kxg3 {[%clk 0:00:31.5]} 52. Rxf5
{[%clk 0:00:24.1]} 52... h4 {[%clk 0:00:31.5]} 53. Kd2 {[%clk 0:00:19.1]} 53...
Re8 {[%clk 0:00:30.8]} 54. Rf1 {[%clk 0:00:18.8]} 54... h3 {[%clk 0:00:31]} 55.
Rg1+ {[%clk 0:00:18.7]} 55... Kf3 {[%clk 0:00:30.6]} 56. Rf1+ {[%clk 0:00:18.7]}
56... Kg2 {[%clk 0:00:30.9]} 57. Rf4 {[%clk 0:00:18]} 57... g3 {[%clk
0:00:31.1]} 58. Ra4 {[%clk 0:00:14]} 58... h2 {[%clk 0:00:31.2]} 59. Ra2 {[%clk
0:00:09.3]} 59... h1=Q {[%clk 0:00:30.9]} 60. Kd3+ {[%clk 0:00:10.2]} 60... Kf3
{[%clk 0:00:30.3]} 61. Kd4 {[%clk 0:00:11.1]} 61... Qd1+ {[%clk 0:00:29.3]} 62.
Kc5 {[%clk 0:00:10.9]} 62... Rc8+ {[%clk 0:00:29.1]} 63. Kb6 {[%clk 0:00:11.8]}
63... Qb3+ {[%clk 0:00:28.8]} 64. Ka7 {[%clk 0:00:10.8]} 64... Qxa2+ {[%clk
0:00:28.9]} 65. Kb7 {[%clk 0:00:11.7]} 65... Qf7+ {[%clk 0:00:24.8]} 66. Kb6
{[%clk 0:00:09.9]} 66... Qc7+ {[%clk 0:00:24.3]} 67. Kb5 {[%clk 0:00:10.8]}
67... Rb8+ {[%clk 0:00:24.3]} 68. Ka6 {[%clk 0:00:10.1]} 68... Qb6# {[%clk
0:00:24.2]} 0-1

[Event "Early-Titled-Tuesday-Blitz-March-05-2024"]
[Site "Chess.com"]
[Date "2024.03.05"]
[Round "4"]
[White "ChessQueen"]
[Black "xakevicius91"]
[Result "0-1"]
[WhiteElo "2765"]
[BlackElo "2571"]
[TimeControl "180+1"]
[EndTime "8:42:53 PST"]
[Termination "xakevicius91 won by checkmate"]

1. Nf3 {[%clk 0:03:00.9]} 1... Nf6 {[%clk 0:02:57.7]} 2. g3 {[%clk 0:03:01]}
2... b6 {[%clk 0:02:57.4]} 3. Bg2 {[%clk 0:03:00.8]} 3... Bb7 {[%clk 0:02:58.1]}
4. d3 {[%clk 0:02:59.7]} 4... e6 {[%clk 0:02:57.7]} 5. c4 {[%clk 0:02:56.8]}
5... Be7 {[%clk 0:02:56.8]} 6. O-O {[%clk 0:02:56.6]} 6... O-O {[%clk
0:02:57.1]} 7. e4 {[%clk 0:02:50.7]} 7... d6 {[%clk 0:02:57.1]} 8. Nc3 {[%clk
0:02:49]} 8... c5 {[%clk 0:02:56.9]} 9. Re1 {[%clk 0:02:47.7]} 9... Nbd7 {[%clk
0:02:56.9]} 10. d4 {[%clk 0:02:46.7]} 10... cxd4 {[%clk 0:02:57.2]} 11. Nxd4
{[%clk 0:02:47.3]} 11... Qb8 {[%clk 0:02:30.1]} 12. b3 {[%clk 0:02:40.7]} 12...
a6 {[%clk 0:02:30.3]} 13. Bb2 {[%clk 0:02:40.5]} 13... Qc7 {[%clk 0:02:30.7]}
14. Rc1 {[%clk 0:02:39.6]} 14... Rac8 {[%clk 0:02:30.3]} 15. f4 {[%clk
0:02:37.9]} 15... Rfd8 {[%clk 0:02:28.5]} 16. Kh1 {[%clk 0:02:36.1]} 16... h5
{[%clk 0:02:27.2]} 17. Qe2 {[%clk 0:02:31.8]} 17... Qb8 {[%clk 0:02:25.3]} 18.
f5 {[%clk 0:02:19.9]} 18... e5 {[%clk 0:01:55.4]} 19. Nc2 {[%clk 0:02:20]} 19...
Nc5 {[%clk 0:01:54.9]} 20. b4 {[%clk 0:02:01.8]} 20... Ncd7 {[%clk 0:01:54.9]}
21. Ne3 {[%clk 0:02:00.8]} 21... Ba8 {[%clk 0:01:52.7]} 22. h3 {[%clk
0:01:52.1]} 22... b5 {[%clk 0:01:53]} 23. cxb5 {[%clk 0:01:46]} 23... axb5
{[%clk 0:01:53.9]} 24. Ncd5 {[%clk 0:01:36.5]} 24... Bxd5 {[%clk 0:01:50.5]} 25.
Nxd5 {[%clk 0:01:35.5]} 25... Nxd5 {[%clk 0:01:48.6]} 26. exd5 {[%clk
0:01:36.4]} 26... Nf6 {[%clk 0:01:39.1]} 27. Rc6 {[%clk 0:01:33.3]} 27... Qa8
{[%clk 0:01:12.9]} 28. Rec1 {[%clk 0:01:33.2]} 28... Rb8 {[%clk 0:01:01.4]} 29.
Ba1 {[%clk 0:01:28.9]} 29... Qa3 {[%clk 0:00:59.1]} 30. Rc7 {[%clk 0:01:06.6]}
30... Re8 {[%clk 0:00:49.1]} 31. Qf3 {[%clk 0:00:49.5]} 31... Qxb4 {[%clk
0:00:44]} 32. Kh2 {[%clk 0:00:46.4]} 32... Ra8 {[%clk 0:00:42.8]} 33. R1c2
{[%clk 0:00:45.2]} 33... Ra3 {[%clk 0:00:41.2]} 34. Qf2 {[%clk 0:00:37.1]} 34...
Qa4 {[%clk 0:00:29.1]} 35. Qe2 {[%clk 0:00:26.4]} 35... h4 {[%clk 0:00:28.5]}
36. g4 {[%clk 0:00:24.3]} 36... Qf4+ {[%clk 0:00:28.8]} 37. Kh1 {[%clk 0:00:23]}
37... Re3 {[%clk 0:00:28.8]} 38. Qf1 {[%clk 0:00:18.9]} 38... Qxf1+ {[%clk
0:00:23.7]} 39. Bxf1 {[%clk 0:00:19.8]} 39... Nxd5 {[%clk 0:00:23.1]} 40. Rc8
{[%clk 0:00:19.9]} 40... Rxc8 {[%clk 0:00:20.4]} 41. Rxc8+ {[%clk 0:00:20.8]}
41... Kh7 {[%clk 0:00:20.8]} 42. Rc1 {[%clk 0:00:18.7]} 42... Nf4 {[%clk
0:00:15.4]} 43. Kh2 {[%clk 0:00:18.5]} 43... Bf6 {[%clk 0:00:13.8]} 44. Rd1
{[%clk 0:00:18.2]} 44... d5 {[%clk 0:00:13.2]} 45. Bb2 {[%clk 0:00:17.8]} 45...
d4 {[%clk 0:00:12.8]} 46. Bc1 {[%clk 0:00:17.8]} 46... Rf3 {[%clk 0:00:10.8]}
47. Bxf4 {[%clk 0:00:15.7]} 47... Rxf4 {[%clk 0:00:11]} 48. Kg2 {[%clk
0:00:09.3]} 48... b4 {[%clk 0:00:11.2]} 49. Bc4 {[%clk 0:00:06.5]} 49... e4
{[%clk 0:00:08.7]} 50. Bxf7 {[%clk 0:00:06.6]} 50... Kh6 {[%clk 0:00:09.2]} 51.
Rc1 {[%clk 0:00:05.9]} 51... d3 {[%clk 0:00:08]} 52. Rd1 {[%clk 0:00:05.3]}
52... Kg5 {[%clk 0:00:07.5]} 53. Bd5 {[%clk 0:00:05.3]} 53... Bd4 {[%clk
0:00:06.8]} 54. Bc6 {[%clk 0:00:05.6]} 54... Rf2+ {[%clk 0:00:06.5]} 55. Kh1
{[%clk 0:00:06.3]} 55... Kf4 {[%clk 0:00:06.6]} 56. Bb7 {[%clk 0:00:05.2]} 56...
Kg3 {[%clk 0:00:04.3]} 57. Rg1+ {[%clk 0:00:03.5]} 57... Kxh3 {[%clk 0:00:03.7]}
58. Bxe4 {[%clk 0:00:02.6]} 58... Rh2# {[%clk 0:00:03.6]} 0-1

[Event "Early-Titled-Tuesday-Blitz-March-05-2024"]
[Site "Chess.com"]
[Date "2024.03.05"]
[Round "4"]
[White "GilbertoHernandezAmura"]
[Black "Binary010"]
[Result "0-1"]
[WhiteElo "2432"]
[BlackElo "2816"]
[TimeControl "180+1"]
[EndTime "8:42:53 PST"]
[Termination "Binary010 won by resignation"]

1. d4 {[%clk 0:02:57.7]} 1... a6 {[%clk 0:02:57.2]} 2. c4 {[%clk 0:02:52.1]}
2... b5 {[%clk 0:02:56.1]} 3. cxb5 {[%clk 0:02:52.7]} 3... axb5 {[%clk
0:02:56.4]} 4. e4 {[%clk 0:02:53.6]} 4... Bb7 {[%clk 0:02:56.1]} 5. d5 {[%clk
0:02:46.4]} 5... c6 {[%clk 0:02:50.8]} 6. Nf3 {[%clk 0:02:42.7]} 6... cxd5
{[%clk 0:02:45.2]} 7. exd5 {[%clk 0:02:39.5]} 7... Nf6 {[%clk 0:02:45]} 8. d6
{[%clk 0:02:32.8]} 8... e6 {[%clk 0:02:37.6]} 9. Bxb5 {[%clk 0:02:24.6]} 9...
Qb6 {[%clk 0:02:37]} 10. Nc3 {[%clk 0:02:21.7]} 10... Bxd6 {[%clk 0:02:32.4]}
11. Be3 {[%clk 0:02:19.8]} 11... Bc5 {[%clk 0:02:30.5]} 12. Bxc5 {[%clk
0:02:01.8]} 12... Qxc5 {[%clk 0:02:31.4]} 13. a4 {[%clk 0:01:54.8]} 13... O-O
{[%clk 0:02:30.8]} 14. O-O {[%clk 0:01:52.7]} 14... Qb4 {[%clk 0:02:23.3]} 15.
Ne5 {[%clk 0:01:35.3]} 15... d6 {[%clk 0:01:54.1]} 16. Nd3 {[%clk 0:01:29.6]}
16... Qh4 {[%clk 0:01:53.6]} 17. f3 {[%clk 0:01:26]} 17... Nc6 {[%clk
0:01:45.6]} 18. Nf2 {[%clk 0:01:25.2]} 18... Rfd8 {[%clk 0:01:36.8]} 19. Rb1
{[%clk 0:01:21.2]} 19... Nb4 {[%clk 0:01:13.9]} 20. Qb3 {[%clk 0:01:12.2]} 20...
Nbd5 {[%clk 0:01:04.4]} 21. Nfe4 {[%clk 0:01:01.5]} 21... Nxe4 {[%clk
0:00:47.5]} 22. Nxe4 {[%clk 0:01:00.9]} 22... Nf4 {[%clk 0:00:46.3]} 23. g3
{[%clk 0:00:55.7]} 23... Nh3+ {[%clk 0:00:40.9]} 24. Kg2 {[%clk 0:00:55.8]}
24... Qh6 {[%clk 0:00:40.6]} 25. Rbe1 {[%clk 0:00:33.6]} 25... Ng5 {[%clk
0:00:25.3]} 26. Nxg5 {[%clk 0:00:27.4]} 26... Qxg5 {[%clk 0:00:26.2]} 27. Rc1
{[%clk 0:00:21.5]} 27... h5 {[%clk 0:00:19.4]} 28. Rc7 {[%clk 0:00:21.6]} 28...
Bd5 {[%clk 0:00:19.3]} 29. Qc2 {[%clk 0:00:19.4]} 29... h4 {[%clk 0:00:18.7]}
30. b4 {[%clk 0:00:18.6]} 30... e5 {[%clk 0:00:09.5]} 31. Re1 {[%clk 0:00:18.6]}
31... Re8 {[%clk 0:00:08.7]} 32. Qc1 {[%clk 0:00:17.4]} 32... Qg6 {[%clk
0:00:08.3]} 33. Qd2 {[%clk 0:00:17.6]} 33... Be6 {[%clk 0:00:06.5]} 34. Bxe8
{[%clk 0:00:17.6]} 34... Rxe8 {[%clk 0:00:06.2]} 35. Qxd6 {[%clk 0:00:17.8]}
35... Bh3+ {[%clk 0:00:06]} 36. Kxh3 {[%clk 0:00:16.9]} 36... Qxd6 {[%clk
0:00:06.9]} 37. Rc2 {[%clk 0:00:17]} 37... Qxb4 {[%clk 0:00:06.4]} 38. Re4
{[%clk 0:00:16.7]} 38... Qb1 {[%clk 0:00:06.5]} 39. Rce2 {[%clk 0:00:16.7]}
39... hxg3 {[%clk 0:00:05.8]} 40. hxg3 {[%clk 0:00:17]} 40... f6 {[%clk
0:00:06.1]} 41. Kg2 {[%clk 0:00:17.1]} 41... Ra8 {[%clk 0:00:03.8]} 42. f4
{[%clk 0:00:17.5]} 42... Qa1 {[%clk 0:00:03.2]} 43. fxe5 {[%clk 0:00:17.5]}
43... f5 {[%clk 0:00:03.1]} 44. Rf4 {[%clk 0:00:17.6]} 44... g6 {[%clk 0:00:03]}
45. g4 {[%clk 0:00:17.8]} 45... Rxa4 {[%clk 0:00:02.7]} 46. Rxa4 {[%clk
0:00:17.5]} 46... Qxa4 {[%clk 0:00:03.6]} 47. gxf5 {[%clk 0:00:18.4]} 47... Qg4+
{[%clk 0:00:03.9]} 48. Kf2 {[%clk 0:00:18.9]} 48... Qxf5+ {[%clk 0:00:02.8]} 49.
Ke1 {[%clk 0:00:19]} 49... Qe6 {[%clk 0:00:03.1]} 50. Kd2 {[%clk 0:00:18.9]}
50... Kg7 {[%clk 0:00:03.3]} 51. Kd3 {[%clk 0:00:19.4]} 51... g5 {[%clk
0:00:04]} 52. Ke4 {[%clk 0:00:19.2]} 52... Kg6 {[%clk 0:00:04.5]} 53. Rf2 {[%clk
0:00:19.6]} 53... Qc4+ {[%clk 0:00:03.7]} 54. Ke3 {[%clk 0:00:19.7]} 54... Qd5
{[%clk 0:00:04]} 55. Rf6+ {[%clk 0:00:19.2]} 55... Kh5 {[%clk 0:00:04.2]} 56.
Rf5 {[%clk 0:00:18.2]} 56... Kg4 {[%clk 0:00:04.6]} 57. Rf8 {[%clk 0:00:18.8]}
57... Qxe5+ {[%clk 0:00:04.7]} 58. Kf2 {[%clk 0:00:19.7]} 58... Qb2+ {[%clk
0:00:05]} 59. Kg1 {[%clk 0:00:19.9]} 59... Qc1+ {[%clk 0:00:05]} 60. Rf1 {[%clk
0:00:20.5]} 60... Qc5+ {[%clk 0:00:05]} 61. Kg2 {[%clk 0:00:21.1]} 61... Qc2+
{[%clk 0:00:05.3]} 62. Rf2 {[%clk 0:00:21.4]} 62... Qe4+ {[%clk 0:00:06]} 63.
Kg1 {[%clk 0:00:21.7]} 63... Kg3 {[%clk 0:00:04]} 64. Rf3+ {[%clk 0:00:20.5]}
64... Kxf3 {[%clk 0:00:03.2]} 0-1

[Event "Early-Titled-Tuesday-Blitz-March-05-2024"]
[Site "Chess.com"]
[Date "2024.03.05"]
[Round "4"]
[White "tolimachess"]
[Black "Goryachkina"]
[Result "0-1"]
[WhiteElo "2429"]
[BlackElo "2678"]
[TimeControl "180+1"]
[EndTime "8:42:56 PST"]
[Termination "Goryachkina won by resignation"]

1. e4 {[%clk 0:03:00.9]} 1... c5 {[%clk 0:02:59.2]} 2. Nf3 {[%clk 0:03:00.6]}
2... e6 {[%clk 0:02:58.9]} 3. c4 {[%clk 0:03:00]} 3... Nc6 {[%clk 0:02:54.2]} 4.
Nc3 {[%clk 0:02:57.5]} 4... Nf6 {[%clk 0:02:49.7]} 5. Be2 {[%clk 0:02:56.4]}
5... d6 {[%clk 0:02:41.6]} 6. d4 {[%clk 0:02:55.4]} 6... cxd4 {[%clk 0:02:40.6]}
7. Nxd4 {[%clk 0:02:56.3]} 7... Be7 {[%clk 0:02:40.1]} 8. O-O {[%clk 0:02:55.3]}
8... O-O {[%clk 0:02:40.2]} 9. Be3 {[%clk 0:02:55.3]} 9... Bd7 {[%clk
0:02:32.4]} 10. Qd2 {[%clk 0:02:53.4]} 10... Nxd4 {[%clk 0:02:29.2]} 11. Bxd4
{[%clk 0:02:51.5]} 11... Bc6 {[%clk 0:02:29.5]} 12. f3 {[%clk 0:02:52]} 12... b6
{[%clk 0:02:28.4]} 13. Rfd1 {[%clk 0:02:48.5]} 13... Rc8 {[%clk 0:02:26.5]} 14.
Bf2 {[%clk 0:02:46.7]} 14... Nd7 {[%clk 0:02:06.9]} 15. Nb5 {[%clk 0:02:36.8]}
15... Bxb5 {[%clk 0:02:05.7]} 16. cxb5 {[%clk 0:02:37.7]} 16... Nf6 {[%clk
0:02:01.1]} 17. Rac1 {[%clk 0:02:27.1]} 17... d5 {[%clk 0:02:00.8]} 18. exd5
{[%clk 0:02:02.6]} 18... Nxd5 {[%clk 0:01:57.1]} 19. Bd3 {[%clk 0:01:43.9]}
19... Rxc1 {[%clk 0:01:46.6]} 20. Qxc1 {[%clk 0:01:40.4]} 20... Bf6 {[%clk
0:01:42.7]} 21. Be4 {[%clk 0:01:37.2]} 21... Qd6 {[%clk 0:01:38.3]} 22. a3
{[%clk 0:01:24.7]} 22... g6 {[%clk 0:01:31.5]} 23. b4 {[%clk 0:01:15.8]} 23...
Be5 {[%clk 0:01:25.9]} 24. g3 {[%clk 0:01:07.7]} 24... Rd8 {[%clk 0:01:25.5]}
25. Qc6 {[%clk 0:01:06.6]} 25... Bb2 {[%clk 0:01:09]} 26. Rd3 {[%clk 0:01:00.3]}
26... Bf6 {[%clk 0:00:37.9]} 27. Qxd6 {[%clk 0:00:40.9]} 27... Rxd6 {[%clk
0:00:37.9]} 28. Bd4 {[%clk 0:00:40.3]} 28... Kg7 {[%clk 0:00:36.2]} 29. a4
{[%clk 0:00:34.9]} 29... Bxd4+ {[%clk 0:00:25]} 30. Rxd4 {[%clk 0:00:34.6]}
30... Kf6 {[%clk 0:00:25.3]} 31. f4 {[%clk 0:00:34.4]} 31... Ke7 {[%clk
0:00:24.3]} 32. Kf2 {[%clk 0:00:28.9]} 32... Nf6 {[%clk 0:00:17.6]} 33. Rxd6
{[%clk 0:00:23.6]} 33... Kxd6 {[%clk 0:00:17.6]} 34. Bf3 {[%clk 0:00:24.5]}
34... e5 {[%clk 0:00:16.4]} 35. Ke3 {[%clk 0:00:24.4]} 35... Nd5+ {[%clk
0:00:14.4]} 36. Ke4 {[%clk 0:00:21.8]} 36... Nc3+ {[%clk 0:00:13.5]} 37. Kd3
{[%clk 0:00:20.7]} 37... Nd5 {[%clk 0:00:08.3]} 38. fxe5+ {[%clk 0:00:13.3]}
38... Kxe5 {[%clk 0:00:08.7]} 39. Kc4 {[%clk 0:00:14.2]} 39... Ne3+ {[%clk
0:00:06.9]} 40. Kd3 {[%clk 0:00:13.5]} 40... Nf1 {[%clk 0:00:07.1]} 41. Be2
{[%clk 0:00:09.8]} 41... Nxh2 {[%clk 0:00:07.2]} 42. a5 {[%clk 0:00:09.1]} 42...
h5 {[%clk 0:00:07.2]} 43. axb6 {[%clk 0:00:08.2]} 43... axb6 {[%clk 0:00:08.1]}
44. Ke3 {[%clk 0:00:08.2]} 44... Ng4+ {[%clk 0:00:08.5]} 45. Kd3 {[%clk
0:00:07.4]} 45... Nf6 {[%clk 0:00:08.5]} 46. Ke3 {[%clk 0:00:07.1]} 46... Nd5+
{[%clk 0:00:08.9]} 47. Kd3 {[%clk 0:00:05.2]} 47... Nxb4+ {[%clk 0:00:09.8]} 48.
Kc4 {[%clk 0:00:06.1]} 48... Nd5 {[%clk 0:00:10]} 49. Bf3 {[%clk 0:00:06.4]}
49... Ne7 {[%clk 0:00:10.3]} 50. Kd3 {[%clk 0:00:06.4]} 50... Nf5 {[%clk
0:00:10.7]} 51. Bd1 {[%clk 0:00:06.9]} 51... Nxg3 {[%clk 0:00:10.9]} 52. Ke3
{[%clk 0:00:07.8]} 52... Nf5+ {[%clk 0:00:11.1]} 53. Kf3 {[%clk 0:00:07.6]}
53... Nd4+ {[%clk 0:00:11.5]} 54. Kg3 {[%clk 0:00:07]} 54... Nxb5 {[%clk
0:00:12.4]} 55. Bb3 {[%clk 0:00:06.3]} 55... Nd6 {[%clk 0:00:12.3]} 56. Kh4
{[%clk 0:00:05.5]} 56... Kf4 {[%clk 0:00:12.3]} 57. Kh3 {[%clk 0:00:05.6]} 57...
b5 {[%clk 0:00:12.2]} 58. Kg2 {[%clk 0:00:05.7]} 58... b4 {[%clk 0:00:12.6]} 0-1